fUSD/lending_fUSD_20240425
["ID","MTS","AMOUNT","RATE_DAILY","PERIOD"]
[323566189,1714086687816,-500.0,0.00012328,2]
[323566190,1714086687825,-500.0,0.00012328,2]
[323566191,1714086687834,-500.0,0.00012328,2]
[323566192,1714086687843,-500.0,0.00012328,2]
[323566193,1714086687853,-500.0,0.00012328,2]
[323566194,1714086687863,-500.0,0.00012328,2]
[323566195,1714086687873,-500.0,0.00012328,2]
[323566196,1714086687882,-874.28,0.00012328,2]
[323566197,1714086687892,-500.0,0.00012328,2]
[323566198,1714086687902,-500.0,0.00012328,2]
[323566199,1714086687912,-517.0,0.00012328,2]
[323566200,1714086687922,-500.0,0.00012328,2]
[323566201,1714086687932,-500.0,0.00012328,2]
[323566202,1714086687941,-500.0,0.00012328,2]
[323566203,1714086687951,-500.0,0.00012328,2]
[323566204,1714086687960,-500.0,0.00012328,2]
[323566205,1714086687970,-500.0,0.00012328,2]
[323566206,1714086687979,-801.77,0.00012328,2]
[323566207,1714086687988,-546.34,0.00012328,2]
[323566208,1714086687997,-500.0,0.00012328,2]
[323566209,1714086688006,-500.0,0.00012328,2]
[323566210,1714086688016,-500.0,0.00012328,2]
[323566211,1714086688025,-559.64,0.00012328,2]
[323566212,1714086688034,-500.0,0.00012328,2]
[323566213,1714086688043,-500.0,0.00012328,2]
[323566214,1714086688052,-500.0,0.00012328,2]
[323566215,1714086688062,-500.0,0.00012328,2]
[323566216,1714086688071,-500.0,0.00012328,2]
[323566217,1714086688080,-541.6,0.00012328,2]
[323566218,1714086688089,-500.0,0.00012328,2]
[323566219,1714086688098,-500.0,0.00012328,2]
[323566220,1714086688107,-500.0,0.00012328,2]
[323566221,1714086688117,-500.0,0.00012328,2]
[323566222,1714086688126,-500.0,0.00012328,2]
[323566223,1714086688135,-500.0,0.00012328,2]
[323566224,1714086688145,-500.0,0.00012328,2]
[323566225,1714086688154,-500.0,0.00012328,2]
[323566226,1714086688163,-500.0,0.00012328,2]
[323566227,1714086688172,-500.0,0.00012328,2]
[323566228,1714086688182,-1497.64,0.00012328,2]
[323566229,1714086688191,-500.0,0.00012328,2]
[323566230,1714086688200,-500.0,0.00012328,2]
[323566231,1714086688210,-500.0,0.00012328,2]
[323566232,1714086688219,-500.0,0.00012328,2]
[323566233,1714086688228,-1306.44,0.00012328,2]
[323566234,1714086688237,-500.0,0.00012328,2]
[323566235,1714086688246,-500.0,0.00012328,2]
[323566236,1714086688256,-500.0,0.00012328,2]
[323566237,1714086688265,-500.0,0.00012328,2]
[323566238,1714086688274,-500.0,0.00012328,2]
[323566239,1714086688283,-500.0,0.00012328,2]
[323566240,1714086688293,-588.67,0.00012328,2]
[323566241,1714086688302,-658.16,0.00012328,2]
[323566242,1714086688311,-650.54,0.00012328,2]
[323566243,1714086688321,-500.0,0.00012328,2]
[323566244,1714086688330,-500.0,0.00012328,2]
[323566245,1714086688340,-555.78,0.00012328,2]
[323566246,1714086688352,-500.0,0.00012328,2]
[323566247,1714086688361,-500.0,0.00012328,2]
[323566248,1714086688370,-500.0,0.00012328,2]
[323566249,1714086688380,-500.0,0.00012328,2]
[323566250,1714086688389,-503.26,0.00012328,2]
[323566251,1714086688398,-500.0,0.00012328,2]
[323566252,1714086688407,-500.0,0.00012328,2]
[323566253,1714086688417,-500.0,0.00012328,2]
[323566254,1714086688426,-500.0,0.00012328,2]
[323566255,1714086688435,-644.1,0.00012328,2]
[323566256,1714086688444,-500.0,0.00012328,2]
[323566257,1714086688454,-766.07,0.00012328,2]
[323566258,1714086688463,-500.0,0.00012328,2]
[323566259,1714086688472,-500.0,0.00012328,2]
[323566260,1714086688481,-552.71,0.00012328,2]
[323566261,1714086688490,-500.0,0.00012328,2]
[323566262,1714086688499,-500.0,0.00012328,2]
[323566263,1714086688509,-500.0,0.00012328,2]
[323566264,1714086688518,-500.0,0.00012328,2]
[323566265,1714086688527,-500.0,0.00012328,2]
[323566266,1714086688537,-500.0,0.00012328,2]
[323566267,1714086688546,-500.0,0.00012328,2]
[323566268,1714086688556,-500.0,0.00012328,2]
[323566269,1714086688567,-500.0,0.00012328,2]
[323566270,1714086688576,-500.0,0.00012328,2]
[323566271,1714086688585,-500.0,0.00012328,2]
[323566272,1714086688595,-693.45,0.00012328,2]
[323566273,1714086688604,-908.07,0.00012328,2]
[323566274,1714086688613,-500.0,0.00012328,2]
[323566275,1714086688622,-500.0,0.00012328,2]
[323566276,1714086688631,-500.0,0.00012328,2]
[323566277,1714086688641,-500.0,0.00012328,2]
[323566278,1714086688650,-1318.0,0.00012328,2]
[323566279,1714086688659,-500.0,0.00012328,2]
[323566280,1714086688668,-1281.27,0.00012328,2]
[323566281,1714086688677,-500.0,0.00012328,2]
[323566282,1714086688686,-500.0,0.00012328,2]
[323566283,1714086688695,-527.32,0.00012328,2]
[323566284,1714086688709,-500.0,0.00012328,2]
[323566285,1714086688719,-500.0,0.00012328,2]
[323566286,1714086688730,-500.0,0.00012328,2]
[323566287,1714086688740,-500.0,0.00012328,2]
[323566288,1714086688750,-500.0,0.00012328,2]
[323566289,1714086688759,-705.97,0.00012328,2]
[323566290,1714086688769,-746.69,0.00012328,2]
[323566291,1714086688779,-500.0,0.00012328,2]
[323566292,1714086688790,-500.0,0.00012328,2]
[323566293,1714086688802,-1095.08,0.00012328,2]
[323566294,1714086688811,-500.0,0.00012328,2]
[323566295,1714086688823,-500.0,0.00012328,2]
[323566296,1714086688834,-500.0,0.00012328,2]
[323566297,1714086688843,-1105.97,0.00012328,2]
[323566298,1714086688852,-500.0,0.00012328,2]
[323566299,1714086688861,-500.0,0.00012328,2]
[323566300,1714086688872,-500.0,0.00012328,2]
[323566301,1714086688881,-500.0,0.00012328,2]
[323566302,1714086688892,-500.0,0.00012328,2]
[323566303,1714086688903,-1142.82,0.00012328,2]
[323566304,1714086688913,-500.0,0.00012328,2]
[323566305,1714086688922,-500.0,0.00012328,2]
[323566306,1714086688932,-696.64,0.00012328,2]
[323566307,1714086688941,-500.0,0.00012328,2]
[323566308,1714086688951,-500.0,0.00012328,2]
[323566309,1714086688961,-500.0,0.00012328,2]
[323566310,1714086688970,-500.0,0.00012328,2]
[323566311,1714086688979,-500.0,0.00012328,2]
[323566312,1714086688989,-500.0,0.00012328,2]
[323566313,1714086688998,-500.0,0.00012328,2]
[323566314,1714086689008,-500.0,0.00012328,2]
[323566315,1714086689017,-500.0,0.00012328,2]
[323566316,1714086689029,-500.0,0.00012328,2]
[323566317,1714086689040,-500.0,0.00012328,2]
[323566318,1714086689050,-359.09761905,0.00012328,2]
[323566319,1714086689059,-645.49,0.00012328,2]
[323566320,1714086689069,-500.0,0.00012328,2]
[323566321,1714086689078,-500.0,0.00012328,2]
[323566322,1714086689087,-515.74,0.00012328,2]
[323566323,1714086689097,-1205.72,0.00012328,2]
[323566324,1714086689106,-763.0,0.00012328,2]
[323566325,1714086689116,-500.0,0.00012328,2]
[323566326,1714086689126,-500.0,0.00012328,2]
[323566327,1714086689135,-500.0,0.00012328,2]
[323566328,1714086689144,-500.0,0.00012328,2]
[323566329,1714086689154,-515.63,0.00012328,2]
[323566330,1714086689163,-500.0,0.00012328,2]
[323566331,1714086689173,-500.0,0.00012328,2]
[323566332,1714086689183,-500.0,0.00012328,2]
[323566333,1714086689193,-500.0,0.00012328,2]
[323566334,1714086689202,-500.0,0.00012328,2]
[323566335,1714086689211,-150.0,0.00012328,2]
[323566336,1714086689220,-500.0,0.00012328,2]
[323566337,1714086689230,-658.59092076,0.00012328,2]
[323566338,1714086690858,-213.61122564,0.00010958,2]
[323566339,1714086690877,-125.64690862,0.00010958,2]
[323566340,1714086690899,-631.33700009,0.00010958,2]
[323566341,1714086690921,-345.59999998,0.00010958,2]
[323566342,1714086690946,-772.44609131,0.00010958,2]
[323566343,1714086690962,-500.0,0.00010958,2]
[323566344,1714086690977,-500.0,0.00010958,2]
[323566345,1714086690995,-352.77974315,0.00011232,2]
[323566346,1714086691035,-147.22025685,0.00011232,2]
[323566347,1714086691051,-470.20071901,0.00011232,2]
[323566348,1714086691071,-505.53116172,0.00011232,2]
[323566349,1714086691089,-802.9568297,0.00011232,2]
[323566350,1714086691109,-96.34128957,0.00011232,2]
[323566351,1714086691124,-500.0,0.00011232,2]
[323566352,1714086691139,-91.81067514,0.00011506,2]
[323566353,1714086691158,-408.18932486,0.00011506,2]
[323566354,1714086691173,-755.49136387,0.00011506,2]
[323566355,1714086691193,-1119.53863613,0.00011506,2]
[323566356,1714086691210,-500.0,0.0001178,2]
[323566357,1714086691225,-500.0,0.0001178,2]
[323566358,1714086691241,-500.0,0.0001178,2]
[323566359,1714086691256,-1875.03,0.0001178,2]
[323566360,1714086691271,-500.0,0.00012054,2]
[323566361,1714086691286,-540.68,0.00012054,2]
[323566362,1714086691302,-500.0,0.00012054,2]
[323566363,1714086691318,-500.0,0.00012054,2]
[323566364,1714086691334,-690.70325213,0.00012328,2]
[323566365,1714086691400,-1875.03,0.00012054,2]
[323566366,1714086691416,-69.77582711,0.00012328,2]
[323566367,1714086691432,-500.0,0.00012328,2]
[323566368,1714086691447,-692.07,0.00012328,2]
[323566369,1714086691462,-500.0,0.00012328,2]
[323566370,1714086691477,-500.0,0.00012328,2]
[323566371,1714086691492,-500.0,0.00012328,2]
[323566372,1714086691507,-387.79923331,0.00012328,2]
[323566373,1714086691585,-112.20076669,0.00012328,2]
[323566374,1714086691599,-539.99997544,0.00012328,2]
[323566375,1714086691617,-262.90002456,0.00012328,2]
[323566376,1714086691632,-500.0,0.00012328,2]
[323566377,1714086691646,-44.82397544,0.00012328,2]
[323566378,1714086691663,-389.72999925,0.00012328,2]
[323566379,1714086691689,-65.44602531,0.00012328,2]
[323566380,1714086691705,-429.84002281,0.00012328,2]
[323566381,1714086691723,-70.15997719,0.00012328,2]
[323566382,1714086691738,-500.0,0.00012328,2]
[323566383,1714086691753,-110.35218776,0.00012328,2]
[323566384,1714086691771,-389.64781224,0.00012328,2]
[323566385,1714086691786,-159.92960369,0.00012328,2]
[323566386,1714086691805,-340.07039631,0.00012328,2]
[323566387,1714086691821,-139.99960369,0.00012328,2]
[323566388,1714086692940,-485.149165,0.00010858,2]
[323566389,1714086692950,-500.0,0.00010958,2]
[323566390,1714086692959,-500.0,0.00010958,2]
[323566391,1714086692970,-595.02,0.00010958,2]
[323566392,1714086692980,-360.00039631,0.00012328,2]
[323566393,1714086692990,-441.83043869,0.00012328,2]
[323566394,1714086693013,-58.16956131,0.00012328,2]
[323566395,1714086693023,-431.06759869,0.00012328,2]
[323566396,1714086693035,-329.28240131,0.00012328,2]
[323566397,1714086693045,-407.09155644,0.00012328,2]
[323566398,1714086693056,-92.90844356,0.00012328,2]
[323566399,1714086693066,-500.0,0.00012328,2]
[323566400,1714086693076,-916.47,0.00012328,2]
[323566401,1714086693085,-500.0,0.00012328,2]
[323566402,1714086693094,-500.0,0.00012328,2]
[323566403,1714086693104,-500.0,0.00012328,2]
[323566404,1714086693113,-500.0,0.00012328,2]
[323566405,1714086693123,-500.0,0.00012328,2]
[323566406,1714086693132,-500.0,0.00012328,2]
[323566407,1714086693143,-30.62155644,0.00012328,2]
[323566408,1714086693155,-550.97844356,0.00012328,2]
[323566409,1714086693165,-500.0,0.00012328,2]
[323566410,1714086693174,-500.0,0.00012328,2]
[323566411,1714086693184,-960.71,0.00012328,2]
[323566412,1714086693194,-500.0,0.00012328,2]
[323566413,1714086693203,-500.0,0.00012328,2]
[323566414,1714086693213,-500.0,0.00012328,2]
[323566415,1714086693222,-500.0,0.00012328,2]
[323566416,1714086693232,-500.0,0.00012328,2]
[323566417,1714086693242,-795.25,0.00012328,2]
[323566418,1714086693251,-500.0,0.00012328,2]
[323566419,1714086693260,-500.0,0.00012328,2]
[323566420,1714086693270,-500.0,0.00012328,2]
[323566421,1714086693280,-479.98328075,0.00012328,2]
[323566422,1714086693292,-255.22517873,0.00012328,2]
[323566423,1714086693304,-35.72154052,0.00012328,2]
[323566424,1714086693314,-500.0,0.00012328,2]
[323566425,1714086693324,-504.34,0.00012328,2]
[323566426,1714086693333,-500.0,0.00012328,2]
[323566427,1714086693345,-747.23,0.00012328,2]
[323566428,1714086693354,-500.0,0.00012328,2]
[323566429,1714086693363,-500.0,0.00012328,2]
[323566430,1714086693372,-500.0,0.00012328,2]
[323566431,1714086693382,-500.0,0.00012328,2]
[323566432,1714086693392,-500.0,0.00012328,2]
[323566433,1714086693401,-907.25,0.00012328,2]
[323566434,1714086693410,-768.25,0.00012328,2]
[323566435,1714086693422,-500.0,0.00012328,2]
[323566436,1714086693431,-348.1232323,0.00012328,2]
[323566437,1714086693443,-151.8767677,0.00012328,2]
[323566438,1714086693453,-500.0,0.00012328,2]
[323566439,1714086693463,-895.31,0.00012328,2]
[323566440,1714086693472,-500.0,0.00012328,2]
[323566441,1714086693481,-729.17,0.00012328,2]
[323566442,1714086693491,-500.0,0.00012328,2]
[323566443,1714086693500,-500.0,0.00012328,2]
[323566444,1714086693510,-511.82,0.00012328,2]
[323566445,1714086693519,-500.0,0.00012328,2]
[323566446,1714086693529,-500.0,0.00012328,2]
[323566447,1714086693539,-500.0,0.00012328,2]
[323566448,1714086693548,-500.0,0.00012328,2]
[323566449,1714086693557,-490.37,0.00012328,2]
[323566450,1714086693567,-500.0,0.00012328,2]
[323566451,1714086693577,-500.0,0.00012328,2]
[323566452,1714086693587,-500.0,0.00012328,2]
[323566453,1714086693596,-500.0,0.00012328,2]
[323566454,1714086693606,-500.0,0.00012328,2]
[323566455,1714086693615,-500.0,0.00012328,2]
[323566456,1714086693624,-500.0,0.00012328,2]
[323566457,1714086693634,-500.0,0.00012328,2]
[323566458,1714086693643,-725.84,0.00012328,2]
[323566459,1714086693652,-500.0,0.00012328,2]
[323566460,1714086693662,-500.0,0.00012328,2]
[323566461,1714086693672,-500.0,0.00012328,2]
[323566462,1714086693682,-500.0,0.00012328,2]
[323566463,1714086693691,-500.0,0.00012328,2]
[323566464,1714086693700,-500.0,0.00012328,2]
[323566465,1714086693709,-500.0,0.00012328,2]
[323566466,1714086693721,-500.0,0.00012328,2]
[323566467,1714086693730,-500.0,0.00012328,2]
[323566468,1714086693740,-500.0,0.00012328,2]
[323566469,1714086693749,-500.0,0.00012328,2]
[323566470,1714086693758,-500.0,0.00012328,2]
[323566471,1714086693768,-500.0,0.00012328,2]
[323566472,1714086693778,-500.0,0.00012328,2]
[323566473,1714086693787,-500.0,0.00012328,2]
[323566474,1714086693797,-500.0,0.00012328,2]
[323566475,1714086693806,-500.0,0.00012328,2]
[323566476,1714086693816,-690.92,0.00012328,2]
[323566477,1714086693825,-634.52,0.00012328,2]
[323566478,1714086693834,-500.0,0.00012328,2]
[323566479,1714086693844,-500.0,0.00012328,2]
[323566480,1714086693853,-152.79611102,0.00012328,2]
[323566481,1714086693862,-500.0,0.00012328,2]
[323566482,1714086693872,-783.46,0.00012328,2]
[323566483,1714086693881,-500.0,0.00012328,2]
[323566484,1714086693890,-500.0,0.00012328,2]
[323566485,1714086693899,-1205.79,0.00012328,2]
[323566486,1714086693909,-2390.38,0.00012328,2]
[323566487,1714086693918,-639.1,0.00012328,2]
[323566488,1714086693927,-500.0,0.00012328,2]
[323566489,1714086693937,-500.0,0.00012328,2]
[323566490,1714086693946,-1379.1,0.00012328,2]
[323566491,1714086693956,-500.0,0.00012328,2]
[323566492,1714086693968,-500.0,0.00012328,2]
[323566493,1714086693977,-500.0,0.00012328,2]
[323566494,1714086693986,-518.23,0.00012328,2]
[323566495,1714086693996,-500.0,0.00012328,2]
[323566496,1714086694006,-692.86,0.00012328,2]
[323566497,1714086694016,-617.93,0.00012328,2]
[323566498,1714086694026,-1301.12,0.00012328,2]
[323566499,1714086694038,-4364.75,0.00012328,2]
[323566500,1714086694048,-500.0,0.00012328,2]
[323566501,1714086694058,-500.0,0.00012328,2]
[323566502,1714086694068,-500.0,0.00012328,2]
[323566503,1714086694078,-925.78,0.00012328,2]
[323566504,1714086694088,-500.0,0.00012328,2]
[323566505,1714086694098,-509.5,0.00012328,2]
[323566506,1714086694109,-500.0,0.00012328,2]
[323566507,1714086694118,-4837.0,0.00012328,2]
[323566508,1714086694128,-898.07,0.00012328,2]
[323566509,1714086694138,-696.83,0.00012328,2]
[323566510,1714086694147,-500.0,0.00012328,2]
[323566511,1714086694156,-500.0,0.00012328,2]
[323566512,1714086694165,-500.0,0.00012328,2]
[323566513,1714086694175,-669.59,0.00012328,2]
[323566514,1714086694184,-584.73,0.00012328,2]
[323566515,1714086694194,-500.0,0.00012328,2]
[323566516,1714086694203,-500.0,0.00012328,2]
[323566517,1714086694215,-854.46,0.00012328,2]
[323566518,1714086694224,-500.0,0.00012328,2]
[323566519,1714086694233,-1406.09,0.00012328,2]
[323566520,1714086694243,-500.0,0.00012328,2]
[323566521,1714086694252,-500.0,0.00012328,2]
[323566522,1714086694262,-500.0,0.00012328,2]
[323566523,1714086694271,-1052.46,0.00012328,2]
[323566524,1714086694281,-1754.68,0.00012328,2]
[323566525,1714086694290,-500.0,0.00012328,2]
[323566526,1714086694299,-500.0,0.00012328,2]
[323566527,1714086694309,-952.15,0.00012328,2]
[323566528,1714086694318,-828.09,0.00012328,2]
[323566529,1714086694328,-549.47,0.00012328,2]
[323566530,1714086694338,-500.0,0.00012328,2]
[323566531,1714086694349,-550.31,0.00012328,2]
[323566532,1714086694358,-506.72,0.00012328,2]
[323566533,1714086694368,-7117.51,0.00012328,2]
[323566534,1714086694377,-530.91,0.00012328,2]
[323566535,1714086694386,-1410.55,0.00012328,2]
[323566536,1714086694395,-500.0,0.00012328,2]
[323566537,1714086694405,-3121.23,0.00012328,2]
[323566538,1714086694414,-500.0,0.00012328,2]
[323566539,1714086694425,-500.0,0.00012328,2]
[323566540,1714086694434,-500.0,0.00012328,2]
[323566541,1714086694444,-1274.95,0.00012328,2]
[323566542,1714086694453,-322.90753279,0.00012328,2]
[323566543,1714086694465,-500.0,0.00012328,2]
[323566544,1714086694474,-1214.41,0.00012328,2]
[323566545,1714086694484,-500.0,0.00012328,2]
[323566546,1714086694493,-500.0,0.00012328,2]
[323566547,1714086694503,-1735.46,0.00012328,2]
[323566548,1714086694513,-1110.79,0.00012328,2]
[323566549,1714086694522,-541.53,0.00012328,2]
[323566550,1714086694532,-500.0,0.00012328,2]
[323566551,1714086694541,-1176.44,0.00012328,2]
[323566552,1714086694550,-500.0,0.00012328,2]
[323566553,1714086694560,-10166.99,0.00012328,2]
[323566554,1714086694569,-500.0,0.00012328,2]
[323566555,1714086694579,-500.0,0.00012328,2]
[323566556,1714086694588,-500.0,0.00012328,2]
[323566557,1714086694598,-500.0,0.00012328,2]
[323566558,1714086694608,-949.91,0.00012328,2]
[323566559,1714086694617,-500.0,0.00012328,2]
[323566560,1714086694626,-1196.53,0.00012328,2]
[323566561,1714086694636,-500.0,0.00012328,2]
[323566562,1714086694646,-500.0,0.00012328,2]
[323566563,1714086694655,-500.0,0.00012328,2]
[323566564,1714086694665,-500.0,0.00012328,2]
[323566565,1714086694674,-1821.52,0.00012328,2]
[323566566,1714086694684,-500.0,0.00012328,2]
[323566567,1714086694693,-667.81,0.00012328,2]
[323566568,1714086694702,-500.0,0.00012328,2]
[323566569,1714086694714,-2056.26,0.00012328,2]
[323566570,1714086694724,-500.0,0.00012328,2]
[323566571,1714086694733,-1590.61,0.00012328,2]
[323566572,1714086694742,-1192.06,0.00012328,2]
[323566573,1714086694751,-500.0,0.00012328,2]
[323566574,1714086694761,-500.0,0.00012328,2]
[323566575,1714086694771,-500.0,0.00012328,2]
[323566576,1714086694780,-500.0,0.00012328,2]
[323566577,1714086694790,-615.89,0.00012328,2]
[323566578,1714086694800,-500.0,0.00012328,2]
[323566579,1714086694809,-155.51703767,0.00012328,2]
[323566580,1714086694819,-588.53,0.00012328,2]
[323566581,1714086694829,-1410.42,0.00012328,2]
[323566582,1714086694840,-2103.99,0.00012328,2]
[323566583,1714086694849,-973.91,0.00012328,2]
[323566584,1714086694860,-1930.64,0.00012328,2]
[323566585,1714086694870,-500.0,0.00012328,2]
[323566586,1714086694879,-500.0,0.00012328,2]
[323566587,1714086694888,-500.0,0.00012328,2]
[323566588,1714086694897,-1021.72,0.00012328,2]
[323566589,1714086694907,-500.0,0.00012328,2]
[323566590,1714086694916,-1131.96,0.00012328,2]
[323566591,1714086694927,-500.0,0.00012328,2]
[323566592,1714086694937,-500.0,0.00012328,2]
[323566593,1714086694946,-500.0,0.00012328,2]
[323566594,1714086694956,-783.32,0.00012328,2]
[323566595,1714086694967,-564.52,0.00012328,2]
[323566596,1714086694976,-3884.89,0.00012328,2]
[323566597,1714086694986,-500.0,0.00012328,2]
[323566598,1714086694995,-182.01041268,0.00012328,2]
[323566599,1714086695005,-500.0,0.00012328,2]
[323566600,1714086695014,-7194.8,0.00012328,2]
[323566601,1714086695024,-526.65,0.00012328,2]
[323566602,1714086695035,-563.47,0.00012328,2]
[323566603,1714086695046,-1269.27,0.00012328,2]
[323566604,1714086695056,-2059.21,0.00012328,2]
[323566605,1714086695066,-1345.63,0.00012328,2]
[323566606,1714086695075,-513.17,0.00012328,2]
[323566607,1714086695086,-18211.49,0.00012328,2]
[323566608,1714086695095,-757.74,0.00012328,2]
[323566609,1714086695105,-500.0,0.00012328,2]
[323566610,1714086695115,-500.0,0.00012328,2]
[323566611,1714086695124,-3420.23,0.00012328,2]
[323566612,1714086695133,-500.0,0.00012328,2]
[323566613,1714086695143,-500.0,0.00012328,2]
[323566614,1714086695153,-500.0,0.00012328,2]
[323566615,1714086695162,-602.67,0.00012328,2]
[323566616,1714086695172,-724.35,0.00012328,2]
[323566617,1714086695182,-532.51,0.00012328,2]
[323566618,1714086695193,-231.00167782,0.00012328,2]
[323566619,1714086695203,-5027.25,0.00012328,2]
[323566620,1714086695212,-630.85,0.00012328,2]
[323566621,1714086695222,-743.36,0.00012328,2]
[323566622,1714086695231,-500.0,0.00012328,2]
[323566623,1714086695240,-500.0,0.00012328,2]
[323566624,1714086695249,-569.25,0.00012328,2]
[323566625,1714086695259,-665.38,0.00012328,2]
[323566626,1714086695268,-500.0,0.00012328,2]
[323566627,1714086695278,-616.6,0.00012328,2]
[323566628,1714086695287,-500.0,0.00012328,2]
[323566629,1714086695297,-500.0,0.00012328,2]
[323566630,1714086695307,-987.05,0.00012328,2]
[323566631,1714086695316,-500.0,0.00012328,2]
[323566632,1714086695325,-500.0,0.00012328,2]
[323566633,1714086695335,-500.0,0.00012328,2]
[323566634,1714086695346,-500.0,0.00012328,2]
[323566635,1714086695357,-500.0,0.00012328,2]
[323566636,1714086695366,-1008.94,0.00012328,2]
[323566637,1714086695376,-1035.52,0.00012328,2]
[323566638,1714086695386,-3244.37,0.00012328,2]
[323566639,1714086695395,-5542.04,0.00012328,2]
[323566640,1714086695405,-8997.14,0.00012328,2]
[323566641,1714086695414,-482.31128165,0.00012328,2]
[323566642,1714086695424,-500.0,0.00012328,2]
[323566643,1714086695433,-500.0,0.00012328,2]
[323566644,1714086695443,-595.93,0.00012328,2]
[323566645,1714086695452,-500.0,0.00012328,2]
[323566646,1714086695461,-500.0,0.00012328,2]
[323566647,1714086695472,-707.47,0.00012328,2]
[323566648,1714086695481,-500.0,0.00012328,2]
[323566649,1714086695491,-500.0,0.00012328,2]
[323566650,1714086695500,-558.27,0.00012328,2]
[323566651,1714086695510,-500.0,0.00012328,2]
[323566652,1714086695519,-715.16,0.00012328,2]
[323566653,1714086695528,-610.9,0.00012328,2]
[323566654,1714086695537,-500.0,0.00012328,2]
[323566655,1714086695547,-500.0,0.00012328,2]
[323566656,1714086695557,-500.0,0.00012328,2]
[323566657,1714086695567,-500.0,0.00012328,2]
[323566658,1714086695577,-4275.93,0.00012328,2]
[323566659,1714086695587,-1031.19,0.00012328,2]
[323566660,1714086695596,-761.18,0.00012328,2]
[323566661,1714086695606,-500.0,0.00012328,2]
[323566662,1714086695616,-566.42,0.00012328,2]
[323566663,1714086695626,-512.19,0.00012328,2]
[323566664,1714086695635,-570.43,0.00012328,2]
[323566665,1714086695645,-887.49,0.00012328,2]
[323566666,1714086695654,-3675.38,0.00012328,2]
[323566667,1714086695664,-1060.36,0.00012328,2]
[323566668,1714086695673,-345.87520461,0.00012328,2]
[323566669,1714086695683,-1399.96,0.00012328,2]
[323566670,1714086695693,-500.0,0.00012328,2]
[323566671,1714086695702,-500.0,0.00012328,2]
[323566672,1714086695712,-500.0,0.00012328,2]
[323566673,1714086695723,-500.0,0.00012328,2]
[323566674,1714086695733,-500.0,0.00012328,2]
[323566675,1714086695742,-654.12,0.00012328,2]
[323566676,1714086695751,-1135.99,0.00012328,2]
[323566677,1714086695760,-573.94,0.00012328,2]
[323566678,1714086695769,-2140.08,0.00012328,2]
[323566679,1714086695778,-596.35,0.00012328,2]
[323566680,1714086695787,-500.0,0.00012328,2]
[323566681,1714086695797,-500.0,0.00012328,2]
[323566682,1714086695806,-2856.95,0.00012328,2]
[323566683,1714086695815,-1776.67,0.00012328,2]
[323566684,1714086695825,-500.0,0.00012328,2]
[323566685,1714086695834,-500.0,0.00012328,2]
[323566686,1714086695844,-500.0,0.00012328,2]
[323566687,1714086695854,-500.0,0.00012328,2]
[323566688,1714086695863,-1267.49,0.00012328,2]